Cogmind - Beta 17 @@@ ROGUE MODE // 2026.07.05 @ 13:05:22 Player: Blaf Result: Destroyed by G-67 Veteran with Plasma Rifle Performance ------------- Evolutions (4) 2000 Regions Visited (9) 1800 Robots Destroyed (34) 170 Value Destroyed (933) 933 Prototype IDs (1) 20 Alien Tech Used (0) 0 Bonus (500) 500 TOTAL SCORE: 5423 Bonus ------- Entered Garrisons 200 Acquired ECA 300 Cogmind --------- Core Integrity 0/850 Matter 10/300 Energy 82/100 System Corruption 0% Temperature Warm (147) Movement Core (150) Ox2 Location -6/Factory Parts ------- > --- POWER (2) -------- (None) > --- PROPULSION (6) --- (None) > --- UTILITY (4) ------ (None) > --- WEAPON (3) ------- Heavy Laser Autogun > --- INVENTORY (5) ---- Improved Treads Improved Signal Interpreter Improved Remote Datajack Peak State ------------ > --- POWER ------------ Light Nuclear Core Micro Fission Core > --- PROPULSION ------- Antigrav System > --- UTILITY ---------- Improved Heat Sink System Shield > --- WEAPON ----------- Gauss Rifle Improved Remote Datajack > --- INVENTORY -------- Assault Rifle [Rating: 31] Favorites ----------- Power Light Nuclear Core Engine Light Ion Engine Power Core Light Nuclear Core Propulsion Cesium-ion Thruster Treads Light Treads Leg Aluminum Leg Wheel Wheel Hover Unit Antigrav System Flight Unit Cesium-ion Thruster Utility System Shield Device Improved Sensor Array Hackware System Shield Weapon Light Assault Rifle Energy Gun EM Pulse Gun Energy Cannon Heavy Ion Cannon Ballistic Gun Light Assault Rifle Launcher Rocket Launcher Special Weapon Improved Remote Datajack Special Melee Weapon Improved Datajack Build | -11 -10 -9 -8 -8 -7 -7 -7 -7 -6 ------- Run | Yrd Mat Mat Mat Sto Fac Gar Fac Low Fac Slots Evolved 8 | . . 2 2 . 2 . . . 2 Power 1 | . . . . . 1 . . . . Propulsion 4 | . . . 2 . . . . . 2 Utility 2 | . . 2 . . . . . . . Weapon 1 | . . . . . 1 . . . . Parts Attached 62 | 5 1 4 9 8 7 12 2 1 13 Power 9 | 1 . 1 1 1 1 3 . . 1 Engine 4 | 1 . 1 . . 1 1 . . . Core 5 | . . . 1 1 . 2 . . 1 Reactor . | . . . . . . . . . . Propulsion 19 | 2 . 2 2 5 3 4 . . 1 Treads 1 | . . . . . . 1 . . . Leg 4 | . . . . 4 . . . . . Wheel 5 | 2 . . . . 3 . . . . Hover 2 | . . . . . . 1 . . 1 Flight 7 | . . 2 2 1 . 2 . . . Utility 11 | . . . 4 . 1 2 2 1 1 Device 10 | . . . 4 . . 2 2 1 1 Storage . | . . . . . . . . . . Processor . | . . . . . . . . . . Hackware 1 | . . . . . 1 . . . . Protection . | . . . . . . . . . . Artifact . | . . . . . . . . . . Weapon 23 | 2 1 1 2 2 2 3 . . 10 Energy Gun 3 | 2 . . . . . . . . 1 Energy Cannon 1 | . . . . . 1 . . . . Ballistic Gun 16 | . 1 1 2 1 . 2 . . 9 Ballistic Cannon . | . . . . . . . . . . Launcher 1 | . . . . 1 . . . . . Special Weapon 1 | . . . . . . 1 . . . Impact Weapon . | . . . . . . . . . . Slashing Weapon . | . . . . . . . . . . Piercing Weapon . | . . . . . . . . . . Special Melee Weapon 1 | . . . . . 1 . . . . Unidentified Prototypes 1 | . . . . . . . . . 1 Parts Lost 38 | . . 1 . 11 6 1 1 . 18 Power 8 | . . 1 . 3 1 . 1 . 2 Propulsion 12 | . . . . 4 3 1 . . 4 Utility 6 | . . . . 2 . . . . 4 Weapon 12 | . . . . 2 2 . . . 8 Highest Loss Streak 7 | . . 1 . 7 4 1 1 . 6 To Critical Strikes . | . . . . . . . . . . Average Backups 2 | 1 1 3 3 3 2 1 4 4 4 Power . | . 1 . 1 . . . 1 . . Propulsion . | . . 1 . . . . 1 2 2 Utility . | . . . . . 1 . . 1 1 Weapon . | . . . 1 1 . . . . . Tool/Special . | . . . . . . . . . . Unused Backups 4 | . . . 1 . . . 1 . 2 Power 1 | . . . 1 . . . . . . Propulsion 2 | . . . . . . . 1 . 1 Utility 1 | . . . . . . . . . 1 Weapon . | . . . . . . . . . . Tool/Special . | . . . . . . . . . . Average Slot Usage (%) 49 | . 71 54 74 68 15 47 33 40 34 Engine 3 | . 14 10 4 2 2 3 . . . Core 4 | . . . 4 5 . 8 6 6 4 Leg 2 | . . . . 16 . . . . . Wheel 4 | . 28 4 . . 6 . . . . Flight 9 | . . 17 34 12 . 2 15 15 6 Device 8 | . . . 12 16 . 6 10 18 16 Hackware 1 | . . . . . 2 7 . . . Energy Gun 3 | . 27 8 . . . . . . . Ballistic Gun 6 | . . 13 18 14 . 8 . . 3 Peak Build Rating 31 | 5 5 11 28 25 14 31 17 24 29 Average Rating 14 | 3 5 8 20 16 5 21 14 20 21 On Entrance 10 | . 5 5 11 24 . 3 20 13 24 Avg Prop Armor Cover (%) 8 | . . . . . . 8 . . . Naked Turns 226 | . . . . 17 209 . . . . Heaviest Build 24 | 7 7 7 18 14 18 24 9 7 12 Greatest Support 40 | 20 20 20 20 40 36 20 8 8 19 Greatest Overweight (x) 7 | . . . . . 3 7 1 . 3 Average Overweight (x) . | . . . . . . . . . . Largest Inventory Capacity 5 | 5 5 5 5 5 5 5 5 5 5 Average Capacity 5 | 5 5 5 5 5 5 5 5 5 5 Most Carried 5 | 5 2 5 4 5 4 4 5 5 5 Average Carried 2 | 1 1 3 3 3 2 1 4 4 4 Final Capacity 5 | 5 5 5 5 5 5 5 5 5 5 Final Carried 5 | 1 1 5 4 2 2 4 5 5 3 Class Distribution -------------------- 46% | Mutant 32% | Sprinter 19% | Scavenger-Mutant Dominant Class ---------------- Mutant | -10/Materials Sprinter | -9/Materials Sprinter | -8/Materials Scavenger-Mutant | -8/Storage Mutant | -7/Factory Mutant | -7/Garrison Sprinter | -7/Factory Sprinter | -7/Lower Caves Mutant | -6/Factory Resources | -11 -10 -9 -8 -8 -7 -7 -7 -7 -6 ----------- Run | Yrd Mat Mat Mat Sto Fac Gar Fac Low Fac Matter Collected 1095 | 206 54 29 34 203 199 70 . 232 68 Remotely . | . . . . . . . . . . Salvage Created 1043 | . 131 46 34 203 312 70 . . 247 Parts 58 | . 6 2 8 11 19 5 . . 7 Haulers Intercepted 1 | . 1 . . . . . . . . Recyclers Shooed 1 | . . . . . . . . . 1 Parts Field Recycled . | . . . . . . . . . . Retrieved Matter . | . . . . . . . . . . Parts Self-Destructed . | . . . . . . . . . . Prevented . | . . . . . . . . . . Parts Restored . | . . . . . . . . . . Kills | -11 -10 -9 -8 -8 -7 -7 -7 -7 -6 ------- Run | Yrd Mat Mat Mat Sto Fac Gar Fac Low Fac Combat Hostiles Destroyed 26 | . 3 3 4 5 2 1 . . 8 Guns 22 | . 3 2 4 4 . 1 . . 8 Cannons 1 | . . . . . 1 . . . . AOE 2 | . . 1 . 1 . . . . . Classes Destroyed 9 | . 3 . . 2 4 . . . . Worker 3 | . . . . . 3 . . . . Builder 1 | . . . . . 1 . . . . Hauler 1 | . 1 . . . . . . . . Recycler 2 | . . . . . 2 . . . . Watcher 1 | . 1 . . . . . . . . Swarmer 13 | . 3 3 4 . . . . . 3 Grunt 9 | . . . . 4 . . . . 5 Sentry 2 | . . . . 1 1 . . . . Programmer 2 | . . . . . 1 1 . . . Best Kill Streak 6 | . 3 3 4 2 4 1 . . 6 Combat Bots Only 6 | . 3 3 4 2 1 1 . . 6 Max Kills in Single Turn 3 | . 1 1 1 1 3 1 . . 2 Gunslinging . | . . . . . . . . . . Exploded 1 | . . 1 . 1 . . . . . Melee . | . . . . . . . . . . Uniques/NPCs Destroyed . | . . . . . . . . . . Combat | -11 -10 -9 -8 -8 -7 -7 -7 -7 -6 -------- Run | Yrd Mat Mat Mat Sto Fac Gar Fac Low Fac Hostile Shots Fired 561 | . 12 12 27 134 132 25 23 1 195 Missed 193 | . . 4 11 44 50 6 16 . 62 Hits 368 | . 12 8 16 90 82 19 7 1 133 Projectile 368 | . 12 8 16 90 82 19 7 1 133 Critical Strikes 16 | . . 1 1 1 4 2 1 . 6 Damage Taken 5289 | . 99 68 132 1217 806 382 90 19 2476 Core 2001 | . 7 13 32 484 467 114 25 . 859 Absorbed by Shields 230 | . . . 14 216 . . . . . Regen/Repaired (Parts) 23 | . . . 23 . . . . . . Core Remaining (%) 62 | 100 97 96 . 6 . . . 13 . Volleys Fired 138 | . 12 4 13 47 17 13 . . 32 Largest 3 | . 2 2 2 2 1 2 . . 3 Hottest 117 | . 80 60 43 53 65 48 . . 117 Shots Fired 257 | . 24 8 26 70 17 27 . . 85 Gun 235 | . 24 8 26 65 . 27 . . 85 Cannon 15 | . . . . . 15 . . . . Launcher 7 | . . . . 5 2 . . . . Special . | . . . . . . . . . . Kinetic 196 | . . 4 26 65 . 27 . . 74 Thermal 26 | . . . . . 15 . . . 11 Explosive 7 | . . . . 5 2 . . . . Electromagnetic 28 | . 24 4 . . . . . . . Robot Hit Streak 14 | . 13 5 4 14 9 5 . . 6 Robot Miss Streak 6 | . 1 3 6 3 3 5 . . 6 Penetration Max 1 | . . . . . . 1 . . . Secondary Targets 8 | . 2 1 . . . . . . 5 Max Gunslinging Chain 1 | . 1 1 . . . . . . 1 Shots Hit Robots 165 | . 19 5 13 47 13 14 . . 54 Core Hits 76 | . 5 3 6 18 12 5 . . 27 Critical Kills 2 | . . . . . 1 . . . 1 Critical Parts Destroyed 1 | . . . . . . . . . 1 Critical Strikes 4 | . . . . . 1 . . . 3 Burn 1 | . . . . . . . . . 1 Meltdown 1 | . . . . . 1 . . . . Destroy 2 | . . . . . . . . . 2 Melee Attacks 3 | . . . . . 3 . . . . Impact . | . . . . . . . . . . Slashing . | . . . . . . . . . . Piercing . | . . . . . . . . . . Sneak Attacks 1 | . . . . . 1 . . . . Combat Hostiles . | . . . . . . . . . . Follow-up Attacks . | . . . . . . . . . . Damage Inflicted 3065 | . 291 81 157 500 548 344 . . 1144 Guns 2317 | . 261 42 157 369 . 344 . . 1144 Cannons 318 | . . . . . 318 . . . . Explosions 403 | . 30 39 . 131 203 . . . . Melee . | . . . . . . . . . . Ramming 27 | . . . . . 27 . . . . Kinetic 1864 | . . 19 157 369 . 344 . . 975 Thermal 556 | . 30 39 . . 318 . . . 169 Explosive 334 | . . . . 131 203 . . . . Electromagnetic 284 | . 261 23 . . . . . . . Impact . | . . . . . . . . . . Slashing . | . . . . . . . . . . Piercing . | . . . . . . . . . . Highest Corruption 7 | . . . . 1 3 7 7 7 . Average Corruption 3 | . . . . 1 2 4 7 7 . Corruption Purged . | . . . . . . . . . . Corruption Blocked . | . . . . . . . . . . Effects 47 | . . . . 5 6 19 13 4 . Message Errors 10 | . . . . . 3 4 3 . . Matter Fused 8 | . . . . 1 1 4 1 1 . Heat Flow Errors 6 | . . . . . 1 2 2 1 . Energy Discharges 4 | . . . . . . 2 2 . . Parts Rejected 1 | . . . . 1 . . . . . Parts Fused 2 | . . . . . . 1 1 . . Data Loss (minor) 11 | . . . . 2 . 5 2 2 . Data Loss (major) 2 | . . . . . 1 . 1 . . Misfires 1 | . . . . . . 1 . . . Alerts 2 | . . . . 1 . . 1 . . Overload Shots . | . . . . . . . . . . Overflow Damage 34 | . . . . 26 8 . . . . Projectiles 8 | . . . . . 8 . . . . Explosions 26 | . . . . 26 . . . . . Melee . | . . . . . . . . . . Knockbacks . | . . . . . . . . . . Impact . | . . . . . . . . . . Kinetic . | . . . . . . . . . . Secondary . | . . . . . . . . . . Self-Inflicted Damage 134 | . . . . 121 13 . . . . Shots 3 | . . . . 3 . . . . . Rammed 3 | . . . . . 3 . . . . Targets Rammed 3 | . . . . . 3 . . . . Kicked . | . . . . . . . . . . Crushed . | . . . . . . . . . . Highest Temperature 239 | . 90 18 12 22 128 181 139 239 145 Average Temperature 46 | . 35 7 8 9 36 85 69 123 56 Received Heat Transfer 1375 | . . . 6 465 162 . 6 9 727 Siege Activations . | . . . . . . . . . . Martial Activations . | . . . . . . . . . . Shielding Activations . | . . . . . . . . . . Robots Disrupted . | . . . . . . . . . . Combat Hostiles . | . . . . . . . . . . Robots Corrupted 1 | . 1 . . . . . . . . Combat Hostiles . | . . . . . . . . . . Parts Fried 1 | . 1 . . . . . . . . Impact Corruptions . | . . . . . . . . . . Robots Melted 1 | . . . . . 1 . . . . Combat Hostiles 1 | . . . . . 1 . . . . Parts Melted 6 | . . . . . 3 . . . 3 Heat Transferred 914 | . 50 50 . . 407 . . . 407 Parts Sabotaged . | . . . . . . . . . . Parts Stolen . | . . . . . . . . . . Parts Stripped . | . . . . . . . . . . Power Chain Reactions 2 | . 1 1 . . . . . . . Alert | -11 -10 -9 -8 -8 -7 -7 -7 -7 -6 ------- Run | Yrd Mat Mat Mat Sto Fac Gar Fac Low Fac Maximum Alert Level 1 | . . . . . . 1 . . . Low Security (%) 97 | 100 100 100 100 100 100 86 100 . 100 Level 1 2 | . . . . . . 13 . . . Level 2 . | . . . . . . . . . . Level 3 . | . . . . . . . . . . Level 4 . | . . . . . . . . . . Level 5 . | . . . . . . . . . . High Security . | . . . . . . . . . . Max Security . | . . . . . . . . . . Peak Influence 219 | . 70 105 112 85 77 219 114 . 90 Initial 114 | . . 22 37 . . 9 114 . . Average 43 | . 4 52 49 13 22 122 42 . 23 Influence Increases 1346 | . 87 150 108 245 191 220 45 . 300 Destroy 0b10 Robot/C 520 | . 60 60 80 100 40 20 . . 160 Destroy 0b10 Robot/NC 40 | . 10 . . . 30 . . . . Destroy Leader 94 | . 14 10 10 20 20 . . . 20 Successful Hack 17 | . . . 3 . 14 . . . . Disable Machine 45 | . . 15 . 30 . . . . . Anti-Garrison Action 200 | . . . . . . 200 . . . Destroy Structure 40 | . 3 5 . 20 12 . . . . Partial Spotted 135 | . . 15 15 60 30 . . . 15 Lose Combat Pursuer 255 | . . 45 . 15 45 . 45 . 105 Influence Decreases 1290 | . 33 114 198 245 177 15 264 . 244 Entered New Map 195 | . . 32 53 . . 5 105 . . Time Decay 814 | . 33 72 145 175 136 . 159 . 94 Lost Part 281 | . . 10 . 70 41 10 . . 150 Squads Dispatched 10 | . 1 1 . 3 2 . 3 . . Investigation 3 | . . . . 2 . . 1 . . Extermination 2 | . . . . . 1 . 1 . . Reinforcement 5 | . 1 1 . 1 1 . 1 . . Assault . | . . . . . . . . . . Garrison . | . . . . . . . . . . Intercept . | . . . . . . . . . . Searches Triggered . | . . . . . . . . . . Construction Impeded 1 | . . . . . 1 . . . . Haulers Reinforced . | . . . . . . . . . . Active Scanning Responses . | . . . . . . . . . . Cargo Convoy Interrupts . | . . . . . . . . . . Stealth | -11 -10 -9 -8 -8 -7 -7 -7 -7 -6 --------- Run | Yrd Mat Mat Mat Sto Fac Gar Fac Low Fac Distress Signals 10 | . . 1 2 4 . . 1 . 2 Communications Jammed . | . . . . . . . . . . Distress Signals . | . . . . . . . . . . Times Spotted 104 | . 8 13 11 20 14 1 11 2 24 Peak Tracking Total 11 | . 3 7 7 11 9 1 6 4 10 Tactical Retreats 11 | . . 3 . 1 2 . 2 . 3 Traps | -11 -10 -9 -8 -8 -7 -7 -7 -7 -6 ------- Run | Yrd Mat Mat Mat Sto Fac Gar Fac Low Fac Traps Triggered 3 | . . . . 3 . . . . . Indirectly . | . . . . . . . . . . Trap Hack Attempts . | . . . . . . . . . . Triggered . | . . . . . . . . . . Disarmed . | . . . . . . . . . . Reprogrammed 3 | . . . . 3 . . . . . Reused . | . . . . . . . . . . Traps Extracted . | . . . . . . . . . . Installed . | . . . . . . . . . . Triggered . | . . . . . . . . . . Machines | -11 -10 -9 -8 -8 -7 -7 -7 -7 -6 ---------- Run | Yrd Mat Mat Mat Sto Fac Gar Fac Low Fac Machines Disabled 3 | . . 1 . 2 . . . . . Max in Single Turn 1 | . . 1 . 1 . . . . . Machines Repaired . | . . . . . . . . . . Machines Dismantled . | . . . . . . . . . . Machines Sabotaged . | . . . . . . . . . . Overloaded Fab Kills . | . . . . . . . . . . Hacking | -11 -10 -9 -8 -8 -7 -7 -7 -7 -6 --------- Run | Yrd Mat Mat Mat Sto Fac Gar Fac Low Fac Machines Accessed 8 | . . . 1 5 1 . 1 . . Terminals 4 | . . . . 4 . . . . . Fabricators . | . . . . . . . . . . Repair Stations 2 | . . . 1 1 . . . . . Recycling Units 1 | . . . . . . . 1 . . Scanalyzers . | . . . . . . . . . . Garrison Access 1 | . . . . . 1 . . . . Total Hacks 18 | . . . 4 10 1 . 3 . . Successful 9 | . . . 2 5 1 . 1 . . Failed 9 | . . . 2 5 . . 2 . . Catastrophic 2 | . . . . 1 . . 1 . . Database Lockouts . | . . . . . . . . . . Manual . | . . . . . . . . . . Terminals 8 | . . . . 8 . . . . . Fabricators . | . . . . . . . . . . Repair Stations 6 | . . . 4 2 . . . . . Recycling Units 3 | . . . . . . . 3 . . Scanalyzers . | . . . . . . . . . . Garrison Access 1 | . . . . . 1 . . . . Terminal Hacks 3 | . . . . 3 . . . . . Locate Traps 2 | . . . . 2 . . . . . Reprogram Traps 1 | . . . . 1 . . . . . Fabricator Hacks . | . . . . . . . . . . Repair Station Hacks 4 | . . . 2 2 . . . . . Scan Component 2 | . . . 1 1 . . . . . Repair 2 | . . . 1 1 . . . . . Recycling Unit Hacks 1 | . . . . . . . 1 . . Retrieve Matter 1 | . . . . . . . 1 . . Scanalyzer . | . . . . . . . . . . Garrison Access Hacks 1 | . . . . . 1 . . . . Unlock Access 1 | . . . . . 1 . . . . Unauthorized Hacks . | . . . . . . . . . . Terminals . | . . . . . . . . . . Fabricators . | . . . . . . . . . . Repair Stations . | . . . . . . . . . . Recycling Units . | . . . . . . . . . . Scanalyzers . | . . . . . . . . . . Garrison Access . | . . . . . . . . . . Data Cores Recovered . | . . . . . . . . . . Used . | . . . . . . . . . . Hacking Detections 4 | . . . . 2 1 . 1 . . Full Trace Events 3 | . . . . 2 . . 1 . . Feedback Events 1 | . . . . 1 . . . . . Corruption 1 | . . . . 1 . . . . . Feedback Blocked . | . . . . . . . . . . Robot Schematics Acquired . | . . . . . . . . . . Robots Built . | . . . . . . . . . . Authchips . | . . . . . . . . . . Time . | . . . . . . . . . . Total Robot Build Rating . | . . . . . . . . . . Part Schematics Acquired . | . . . . . . . . . . Parts Built . | . . . . . . . . . . Authchips . | . . . . . . . . . . Time . | . . . . . . . . . . Total Part Build Rating . | . . . . . . . . . . Part Studies Acquired . | . . . . . . . . . . Parts Repaired 1 | . . . 1 . . . . . . Time 76 | . . . 38 38 . . . . . Parts Recycled . | . . . . . . . . . . Recycled Matter . | . . . . . . . . . . Retrieved Matter . | . . . . . . . . . . Retrieved Components . | . . . . . . . . . . Parts Scanalyzed . | . . . . . . . . . . Part Schematics Acquired . | . . . . . . . . . . Parts Damaged . | . . . . . . . . . . Bothacking | -11 -10 -9 -8 -8 -7 -7 -7 -7 -6 ------------ Run | Yrd Mat Mat Mat Sto Fac Gar Fac Low Fac Used RIF Installer . | . . . . . . . . . . Robots Hacked 1 | . . . . . 1 . . . . Non-combat . | . . . . . . . . . . Combat 1 | . . . . . 1 . . . . Robot Hacks Applied 1 | . . . . . 1 . . . . parse_system 1 | . . . . . 1 . . . . Relay Couplers Released 3 | . . . . . . 3 . . . Programmers 3 | . . . . . . 3 . . . Fabnet Peak Effective % . | . . . . . . . . . . Robots Rewired . | . . . . . . . . . . Allies Hacked . | . . . . . . . . . . Hacks Repelled . | . . . . . . . . . . Allies | -11 -10 -9 -8 -8 -7 -7 -7 -7 -6 -------- Run | Yrd Mat Mat Mat Sto Fac Gar Fac Low Fac Total Allies 1 | . . . . . . . . 1 . Largest Group 1 | . . . . . . . . 1 . Highest-Rated Group 180 | . . . . . . . . 180 . Highest-Rated Ally 180 | . . . . . . . . 180 . Initial Warlord ECA Mod 2 | . . . . . . . 2 2 1 Total Orders . | . . . . . . . . . . Ally Attacks . | . . . . . . . . . . Total Damage . | . . . . . . . . . . Kills . | . . . . . . . . . . Allies Corrupted . | . . . . . . . . . . Allies Melted . | . . . . . . . . . . Intel | -11 -10 -9 -8 -8 -7 -7 -7 -7 -6 ------- Run | Yrd Mat Mat Mat Sto Fac Gar Fac Low Fac Active Infowar (turns) 918 | . . . 259 659 . . . . . Sensors 918 | . . . 259 659 . . . . . Robot Analysis Total . | . . . . . . . . . . Derelict Logs Recovered . | . . . . . . . . . . Drone Launches . | . . . . . . . . . . Drone Recoveries . | . . . . . . . . . . Exploration | -11 -10 -9 -8 -8 -7 -7 -7 -7 -6 ------------- Run | Yrd Mat Mat Mat Sto Fac Gar Fac Low Fac Turns Passed 3956 | 53 464 187 344 676 512 728 426 109 457 Spaces Moved 4952 | 65 469 417 520 713 726 425 858 205 554 Core 695 | 31 . . . 37 551 31 . . 45 Treads 167 | . . . . . . 167 . . . Legs 239 | . . . . 239 . . . . . Wheels 705 | 34 469 27 . . 175 . . . . Hover 253 | . . . . . . 114 . . 139 Flight 2893 | . . 390 520 437 . 113 858 205 370 Fastest Speed 26 | 50 80 32 26 26 50 50 32 32 32 Average Speed 58 | 65 80 35 26 58 61 155 33 32 59 Slowest Speed 400 | 80 80 80 29 120 200 400 112 32 200 Overloaded Moves . | . . . . . . . . . . Propulsion Burnouts . | . . . . . . . . . . Robots Hopped 16 | . . 1 . 3 . . 11 . 1 Potential Cave-ins . | . . . . . . . . . . Cave-ins Triggered . | . . . . . . . . . . Exploration Rate (%) 25 | 3 40 42 27 46 16 40 13 11 12 Regions Visited 9 Branch Regions 2 Pre-discovered Areas 1 | . . . . . . . . 1 . Known Exits Taken 1 | . . . . . 1 . . . . Unknown Exits Taken 7 | 1 1 1 1 1 . . 1 1 . Scrap Searched 7 | . . . . . . . . 7 . Spaces Dug . | . . . . . . . . . . Terrain Destroyed 43 | . 2 4 . 20 17 . . . . Melee . | . . . . . . . . . . Projectile 1 | . . . . . 1 . . . . AOE 42 | . 2 4 . 20 16 . . . . Terrain Rammed . | . . . . . . . . . . Walls Destroyed . | . . . . . . . . . . Machines Disabled . | . . . . . . . . . . Actions | -11 -10 -9 -8 -8 -7 -7 -7 -7 -6 --------- Run | Yrd Mat Mat Mat Sto Fac Gar Fac Low Fac Total 5740 | 75 533 449 704 906 771 463 982 247 610 Wait 541 | . 50 12 155 134 12 . 127 40 11 Move 4911 | 64 468 414 519 706 725 424 835 204 552 Hop 16 | . . 1 . 3 . . 11 . 1 Pick Up 29 | 6 1 9 2 4 2 2 2 1 . Fast Attach 41 | . . . 5 4 5 12 2 1 12 Attach 26 | 5 . 3 4 6 3 2 . 1 2 Detach 7 | . . . 1 . 1 4 1 . . Swap 6 | . 1 2 1 2 . . . . . Drop 18 | . 1 4 4 . . 5 4 . . Fire 138 | . 12 4 13 47 17 13 . . 32 Melee 3 | . . . . . 3 . . . . Ram 3 | . . . . . 3 . . . . Kick . | . . . . . . . . . . Crush . | . . . . . . . . . . Escape Stasis . | . . . . . . . . . . Rewire 1 | . . . . . . 1 . . . Trap . | . . . . . . . . . . Miscellaneous . | . . . . . . . . . . Route ------- -11/Scrapyard -10/Materials (discovered 2 exits: [*Mat] / [*Min]) -9/Materials -8/Materials -8/Storage -7/Factory (discovered 3 exits: [*Fac] / [*Low] / Gar) -7/Garrison -7/Factory -7/Lower Caves -6/Factory History --------- Turn | Location | Event 6 | -11/Scrapyard | Discovered new exit (range 15) 54 | -11/Scrapyard | Entered Materials 257 | -10/Materials | Discovered new exit (range 7) 302 | -10/Materials | Build established: Mutant 360 | -10/Materials | Discovered new exit (range 7) 518 | -10/Materials | Entered another Materials area 518 | -9/Materials | Evolved 2 slots: Utility x2 646 | -9/Materials | Discovered new exit (range 7) 705 | -9/Materials | Entered another Materials area 705 | -8/Materials | Evolved 2 slots: Propulsion x2 728 | -8/Materials | Discovered new exit (range 8) 842 | -8/Materials | Repaired Cesium-ion Thruster 885 | -8/Materials | Build established: Sprinter 1049 | -8/Materials | Entered Storage 1351 | -8/Storage | Lost 7 parts (1p4n1u1w) 1516 | -8/Storage | Core integrity fell below 50% 1623 | -8/Storage | Build established: Scavenger-Mutant 1717 | -8/Storage | Discovered new exit (range 15) 1720 | -8/Storage | Core integrity fell below 20% 1725 | -8/Storage | Entered Factory 1725 | -7/Factory | Evolved 2 slots: Power x1, Weapon x1 1874 | -7/Factory | Discovered new exit (range 7) 2093 | -7/Factory | Discovered new exit (range 9) 2189 | -7/Factory | Core integrity fell below 50% 2191 | -7/Factory | Lost 4 parts (1p2n1w) 2237 | -7/Factory | Identified exit to Garrison 2237 | -7/Factory | Entered Garrison 2237 | -7/Garrison | Discovered recently destroyed garrison 2393 | -7/Garrison | Build established: Mutant 2422 | -7/Garrison | Discovered new exit (range 9) 2643 | -7/Garrison | Core integrity fell below 20% 2655 | -7/Garrison | Heavy support dispatched to Factory 2872 | -7/Garrison | Heavy support dispatched to Factory 2965 | -7/Garrison | Entered Factory 3043 | -7/Factory | Discovered new exit (range 12) 3302 | -7/Factory | Build established: Sprinter 3391 | -7/Factory | Entered Lower Caves 3447 | -7/Lower Caves | Met a Warlord Commander 3448 | -7/Lower Caves | Learned location of Warlord (-4) 3449 | -7/Lower Caves | Warlord Commander delivered Encrypted Comm Array 3451 | -7/Lower Caves | Found Encrypted Comm Array 3495 | -7/Lower Caves | 7V-RTL showed up to help 3497 | -7/Lower Caves | 7V-RTL revealed a hidden path 3500 | -7/Lower Caves | Entered Factory 3500 | -6/Factory | Evolved 2 slots: Propulsion x2 3758 | -6/Factory | Lost 3 parts (2n1u) 3841 | -6/Factory | Core integrity fell below 50% 3844 | -6/Factory | Lost 5 parts (1p2n2u) 3906 | -6/Factory | Lost 6 parts (1u5w) 3913 | -6/Factory | Core integrity fell below 20% 3957 | -6/Factory | Destroyed by G-67 Veteran with Plasma Rifle Last Messages --------------- 03913_ Acquired Hvy. Laser. 03916_ Acquired Autogun. 03917_ Destroyed Lgt. Antimatter Reactor. 03921_ Hpw. Shotgun destroyed. 03923_ G-67 Veteran destroyed. 03926_ Acquired 19 matter. 03929_ Acquired Lgt. Nuclear Core. 03935_ R-10 Processor collects VTOL Module. 03943_ G-50 Soldier suffers critical hit (Burn). 03949_ G-50 Soldier overheating. 03950_ G-50 Soldier heat short circuits Adv. Heat Sink. 03951_ G-50 Soldier heat spikes uncontrollably. 03951_ Hvy. Laser melted. 03951_ Carbon-fiber Leg melted. 03951_ G-50 Soldier destroyed. 03951_ Switching to secondary target: G-67 Veteran. 03951_ Lgt. Nuclear Core destroyed. Map ----- +----------------------------------------------------+ | ?????????????????????????????????????????????????? | | ?????????????????????????????????????????????????? | | ?????????????????????????????????????????????????? | | ?????????????????????????????????????????????????? | | ?????????????????????????????????????????????????? | | ?????????????????????????????????????????????????? | | ?????????????????????????????????????????????????? | | ?????????????????????????????????????????????????? | | ?????????????????????????????????????????????????? | | ?????????????????????????????????????????????????? | | ?????????????????????????????????????????????????? | | ?????????????????????????????????????????????????? | | ?????????????????????????????????????????????????? | | ?????????????????????????????????????????????????? | | ?????????????????????????????????????????????????? | | ?????????????????????????????????????????????????? | | ??????????????????????????????#########??????????? | | ??????????????????????????????# #??????????? | | ??????????????????????????????# #??????????? | | ??????????????????????????????# #??????????? | | ??????????????????????????????# #??????????? | | ???????????????????############ #??????????? | | ???????????????????# # ############ | | ???????????????????# # | | ???????????????????# # ### | | ???????????????????# = @ # """ """ #?? | | ???????????????????# % %% # """ """ #?? | | ???????????????????# % # """ """ # | | ???????????????????# %=%gg# """ # | | ???????????????????# g + / | | ???????????????????# # # | | ???????????????????# # # | | ???????????????????# # """" """" # | | ???????????????????# ## ^ """" """" # | | ???????????????????# ## """" """" ### | | ???????????????????# ## """" """" | | ???????? ?????????# ## """" """" | | ???????? ?????????############# """" """" | | ????#####/################# | | ????# "%" ! + | | ###?? " ##### | | #?# """ """ """ #???# """ | | #?# """ """ """ #???# """ | | #?# """ """ """ #???# """ | | #?# #???# """ #################### | | #?#######/########### # #?????? | | #??????# # #?????? | | ######## #### ##### ##### # ???????? | | + ####+###?#+????# # """ ?????????? | | # ## """?????# + """""??????????? | +----------------------------------------------------+ Best States ------------- Heat Dissipation 48 Energy Generation 25 Energy Capacity 350 Matter Stores 300 Matter Capacity 300 Sight Range 16 Robot Scan Range 15 Terrain Scan Density 10 Evasion (%) 71 Recoil Reduction 1 Defensive Hacking 10 Item Schematics ----------------- None Robot Schematics ------------------ None Fabricated ------------ Nothing Repaired ---------- Cesium-ion Thruster | 8% | -8/Materials Studied --------- None Alien Tech Used ----------------- None Achievements -------------- I Like You, Cogmind Universal Adapter Challenges ------------ None Game ------ Seed WeaponsTitaniumShotgun Manual? 0 Play Time 01:02:28 Cumulative 14.3 hours Start 2026.07.05 @ 12:04:37 End 2026.07.05 @ 13:05:22 Sessions 1 Manual Loads 0 Difficulty Rogue Special Mode None Game No. 26 Rogue 26 Adventurer 0 Explorer 0 Win Type - Total 0 Types 0/0/0/0/0/0/0/0/0/0 Lore% 7 Gallery% 14 Achievement% 12 Wizard Run 0 Options --------- Layout 1 ASCII 0 Keyboard 0 Movement Arrows Keybinds 0 Fullscreen 1 Font 24/Smallcaps Map View 50x35 Zoom Use 0% Tactical HUD 1 Map Filters NONE Filters NONE Steam 1 RUN: 2c477cbb-91ab-4090-b7cf-b1a18a477d8c